fUSD/lending_fUSD_20240503
["ID","MTS","AMOUNT","RATE_DAILY","PERIOD"]
[325357453,1714750242805,-156.06078339,0.00036985,7]
[325357455,1714750242814,-152.10816878,0.00036988,7]
[325357457,1714750242824,-32658.10088054,0.00037,10]
[325357459,1714750242834,-2838.13406776,0.00037,2]
[325357461,1714750242844,-792.0,0.00037,2]
[325357463,1714750242854,-1000.0,0.00037,2]
[325357465,1714750242863,-650.0,0.00037,2]
[325357467,1714750242872,-1649.510415,0.0003726,14]
[325357469,1714750242882,-150.66,0.00037314,2]
[325357471,1714750242892,-5800.0,0.00037324,2]
[325357473,1714750242902,-5800.0,0.00037333,2]
[325357475,1714750242913,-5800.0,0.00037341,2]
[325357477,1714750242923,-5800.0,0.0003735,2]
[325357479,1714750242934,-5800.0,0.00037358,2]
[325357481,1714750242945,-5800.0,0.00037366,2]
[325357482,1714750242955,-5800.0,0.00037375,2]
[325357484,1714750242965,-5800.0,0.00037384,2]
[325357486,1714750242976,-1270.562025,0.0003739,2]
[325357488,1714750242986,-5800.0,0.00037392,2]
[325357489,1714750242997,-5800.0,0.00037401,2]
[325357491,1714750243007,-5800.0,0.00037409,2]
[325357493,1714750243019,-334.11868226,0.00037429,7]
[325357494,1714750243029,-150.66,0.0003749,2]
[325357496,1714750243039,-9583.82270023,0.000375,3]
[325357498,1714750243049,-151.0,0.00037574,2]
[325357500,1714750243059,-632.75341302,0.00037589,7]
[325357501,1714750243069,-334.11868226,0.00037672,7]
[325357503,1714750243080,-160.21873538,0.00037718,7]
[325357505,1714750243090,-12718.656393,0.000378,2]
[325357508,1714750243101,-152.10816878,0.00037886,7]
[325357511,1714750243110,-150.66,0.0003799,2]
[325357513,1714750243120,-75875.82700171,0.00038,2]
[325357515,1714750243130,-19077.984589,0.00038,2]
[325357517,1714750243140,-152.12902795,0.00038009,7]
[325357518,1714750243150,-150.10647152,0.00038013,7]
[325357520,1714750243161,-334.11868226,0.00038033,7]
[325357523,1714750243172,-1649.510415,0.00038082,14]
[325357526,1714750243182,-296.57803574,0.000381,2]
[325357529,1714750243193,-191.70046026,0.000381,11]
[325357531,1714750243203,-150.66,0.0003819,2]
[325357533,1714750243214,-150.66,0.0003819,2]
[325357535,1714750243225,-150.66,0.0003819,2]
[325357536,1714750243235,-150.66,0.0003819,2]
[325357538,1714750243246,-150.66,0.0003819,2]
[325357540,1714750243257,-150.66,0.0003819,2]
[325357542,1714750243267,-150.66,0.0003819,2]
[325357544,1714750243277,-150.66,0.0003819,2]
[325357546,1714750243293,-150.66,0.0003819,2]
[325357548,1714750243304,-150.66,0.0003819,2]
[325357549,1714750243314,-150.66,0.0003819,2]
[325357551,1714750243324,-150.66,0.0003819,2]
[325357553,1714750243335,-150.66,0.0003819,2]
[325357555,1714750243345,-491488.365816,0.000382,2]
[325357560,1714750243392,-370056.56685911,0.000382,2]
[325357718,1714750245096,-500.0,0.000369,13]
[325357720,1714750245106,-856.79557589,0.000382,2]
[325357723,1714750245118,-17715.34863852,0.000382,2]
[325357725,1714750245130,-1798.07131388,0.000382,2]
[325357752,1714750245296,-392.29490377,0.0003435,2]
[325357754,1714750245308,-22.06509623,0.0003435,2]
[325357756,1714750245317,-335.62972924,0.000382,2]
[325357758,1714750245331,-348.04079335,0.000382,2]
[325357761,1714750245343,-52483.18127401,0.000382,2]
[325357763,1714750245353,-302.0,0.00038206,4]
[325357765,1714750245362,-150.10647152,0.00038226,7]
[325357767,1714750245373,-334.11868226,0.0003828,7]
[325357769,1714750245382,-179.20149184,0.00038335,2]
[325357771,1714750245391,-156.06078339,0.00038358,7]
[325357773,1714750245400,-632.75341302,0.0003844,7]
[325357775,1714750245410,-334.11868226,0.00038484,7]
[325357777,1714750245419,-150.66,0.0003849,2]
[325357779,1714750245429,-25437.312786,0.000385,2]
[325357781,1714750245438,-159.55653523,0.00038514,7]
[325357783,1714750245447,-400.0,0.0003852,2]
[325357785,1714750245457,-152.10816878,0.00038543,7]
[325357787,1714750245466,-191.70046026,0.00038662,12]
[325357789,1714750245478,-150.10647152,0.00038671,7]
[325357791,1714750245487,-192.85145654,0.00038771,7]
[325357793,1714750245496,-150.10647152,0.00038784,7]
[325357795,1714750245506,-31796.640983,0.000388,2]
[325357797,1714750245515,-334.11868226,0.0003885,7]
[325357799,1714750245524,-152.10816878,0.00038862,7]
[325357801,1714750245533,-252.64562192,0.000389,30]
[325357803,1714750245542,-4088.79484012,0.000389,15]
[325357805,1714750245551,-1649.510415,0.00038904,14]
[325357807,1714750245561,-1000.0,0.00038904,120]
[325357809,1714750245570,-334.11868226,0.00038929,7]
[325357811,1714750245580,-150.66,0.0003899,2]
[325357813,1714750245589,-3985.84116012,0.00039,14]
[325357815,1714750245598,-44515.297376,0.00039,2]
[325357817,1714750245608,-632.75341302,0.00039013,7]
[325357819,1714750245617,-296.57803568,0.00039067,2]
[325357821,1714750245626,-738.76,0.00039185,120]
[325357823,1714750245635,-192.85145654,0.00039219,7]
[325357825,1714750245645,-191.70046026,0.00039224,12]
[325357827,1714750245654,-150.66,0.0003923,2]
[325357829,1714750245664,-50874.625573,0.0003924,2]
[325357831,1714750245674,-500.0,0.0003937,2]
[325357833,1714750245683,-636.90874669,0.0003937,2]
[325357835,1714750245693,-364.02,0.00039402,2]
[325357837,1714750245703,-195.76,0.00039402,120]
[325357839,1714750245712,-178.28774648,0.000396,2]
[325357841,1714750245723,-1859.0,0.00039687,2]
[325357843,1714750245732,-610.0,0.00039687,2]
[325357846,1714750245743,-208.0,0.00039687,2]
[325357848,1714750245752,-437.0,0.00039687,2]
[325357850,1714750245761,-808.0,0.00039687,2]
[325357852,1714750245771,-419.0,0.00039687,2]
[325357854,1714750245780,-150.0,0.00039687,2]
[325357856,1714750245790,-1474.0,0.00039687,2]
[325357858,1714750245799,-2446.0,0.00039687,2]
[325357860,1714750245809,-1139.0,0.00039687,2]
[325357862,1714750245818,-3129.0,0.00039687,2]
[325357864,1714750245827,-5899.0,0.00039687,2]
[325357866,1714750245836,-37727.663,0.00039687,2]
[325357868,1714750245846,-5733.0,0.00039687,2]
[325357870,1714750245855,-2292.0,0.00039687,2]
[325357871,1714750245864,-970.0,0.00039687,2]
[325357874,1714750245874,-2298.0,0.00039687,2]
[325357876,1714750245884,-1395.0,0.00039687,2]
[325357877,1714750245893,-462.0,0.00039687,2]
[325357880,1714750245903,-1058.47,0.00039687,2]
[325357882,1714750245913,-334.11868226,0.00039695,7]
[325357884,1714750245923,-200.0,0.000397,2]
[325357886,1714750245933,-3000.0,0.000397,2]
[325357888,1714750245942,-1649.510415,0.00039726,14]
[325357890,1714750245951,-191.70046026,0.00039786,13]
[325357892,1714750245961,-296.53382806,0.0003984,10]
[325357894,1714750245970,-174.23,0.00039856,2]
[325357896,1714750245980,-153.604244,0.000399,10]
[325357898,1714750245989,-150.0,0.000399,10]
[325357900,1714750245999,-500.0,0.0003997,2]
[325357901,1714750246009,-193.31284266,0.0004,2]
[325357904,1714750246019,-557.91381552,0.0004,4]
[325357906,1714750246028,-22153.95208094,0.0004,4]
[325357908,1714750246038,-202.74915258,0.0004,90]
[325357910,1714750246047,-155.0,0.0004,4]
[325357911,1714750246056,-250.0,0.0004,30]
[325357915,1714750246066,-250.0,0.0004,30]
[325357917,1714750246075,-296.57803568,0.00040033,2]
[325357919,1714750246085,-192.85145654,0.000401,30]
[325357921,1714750246094,-487.0,0.000402,2]
[325357922,1714750246103,-160.21873538,0.00040201,30]
[325357924,1714750246112,-334.11868226,0.00040317,30]
[325357926,1714750246122,-191.70046026,0.00040348,14]
[325357929,1714750246131,-150.0,0.000404,10]
[325357931,1714750246141,-150.0,0.000404,10]
[325357933,1714750246150,-2100.0,0.00040426,14]
[325357935,1714750246159,-3000.0,0.000405,2]
[325357937,1714750246168,-183.26,0.00040589,120]
[325357939,1714750246178,-150.10647152,0.00040607,30]
[325357941,1714750246187,-632.75341302,0.00040693,30]
[325357943,1714750246196,-334.11868226,0.00040805,30]
[325357945,1714750246205,-150.10647152,0.00040832,30]
[325357947,1714750246214,-150.0,0.000409,10]
[325357950,1714750246234,-150.0,0.000409,10]
[325357952,1714750246247,-191.70046026,0.0004091,15]
[325357954,1714750246257,-163.87864287,0.00040995,2]
[325357956,1714750246267,-164.18140884,0.00040995,33]
[325357958,1714750246276,-296.57803568,0.00041,2]
[325357960,1714750246287,-210.0,0.0004107,2]
[325357962,1714750246300,-551345.66457556,0.00041095,13]
[325357964,1714750246311,-1193.6,0.00041095,30]
[325357966,1714750246321,-1635.07,0.00041095,30]
[325357969,1714750246330,-2527.18,0.00041095,30]
[325357971,1714750246342,-1699.37,0.00041095,30]
[325357973,1714750246352,-591.86,0.00041095,30]
[325357975,1714750246362,-500.0,0.00041095,30]
[325357977,1714750246373,-710.6,0.00041095,30]
[325357981,1714750246384,-500.0,0.00041095,30]
[325357983,1714750246394,-972.03,0.00041095,30]
[325357985,1714750246404,-1000.0,0.00041095,15]
[325357987,1714750246414,-504.2122469,0.00041095,30]
[325357990,1714750246424,-500.0,0.00041095,30]
[325357993,1714750246434,-500.0,0.00041095,30]
[325357996,1714750246444,-450.72967734,0.00041095,30]
[325357998,1714750246454,-500.0,0.00041095,30]
[325358001,1714750246464,-1659.41,0.00041095,30]
[325358003,1714750246475,-691.7,0.00041095,30]
[325358005,1714750246484,-1792.23,0.00041095,30]
[325358007,1714750246494,-500.0,0.00041095,30]
[325358009,1714750246504,-500.0,0.00041095,30]
[325358011,1714750246514,-1620.98,0.00041095,30]
[325358013,1714750246524,-993.5,0.00041095,30]
[325358015,1714750246534,-1053.33,0.00041095,30]
[325358017,1714750246543,-553.45,0.00041095,30]
[325358019,1714750246552,-500.0,0.00041095,30]
[325358021,1714750246562,-500.0,0.00041095,30]
[325358023,1714750246572,-500.0,0.00041095,30]
[325358025,1714750246581,-500.0,0.00041095,30]
[325358027,1714750246592,-500.0,0.00041095,30]
[325358044,1714750246739,-627.27,0.00041095,30]
[325358046,1714750246750,-306.28403952,0.00041095,30]
[325358048,1714750246759,-1412.47,0.00041095,30]
[325358050,1714750246768,-1063.69,0.00041095,30]
[325358052,1714750246778,-193.96347555,0.00041095,30]
[325358054,1714750246788,-500.0,0.00041095,30]
[325358057,1714750246797,-1361.09,0.00041095,30]
[325358059,1714750246812,-500.0,0.00041095,30]
[325358061,1714750246822,-2848.52,0.00041095,30]
[325358063,1714750246831,-500.0,0.00041095,30]
[325358065,1714750246842,-500.0,0.00041095,30]
[325358068,1714750246852,-2780.63,0.00041095,30]
[325358070,1714750246862,-500.0,0.00041095,30]
[325358072,1714750246872,-500.0,0.00041095,30]
[325358074,1714750246881,-500.0,0.00041095,30]
[325358076,1714750246891,-500.0,0.00041095,30]
[325358078,1714750246900,-506.40590368,0.00041095,30]
[325358080,1714750246910,-1296.3,0.00041095,30]
[325358082,1714750246920,-973.54,0.00041095,30]
[325358084,1714750246931,-500.0,0.00041095,30]
[325358086,1714750246940,-1440.62,0.00041095,30]
[325358088,1714750246950,-500.0,0.00041095,30]
[325358090,1714750246960,-500.0,0.00041095,30]
[325358092,1714750246969,-500.0,0.00041095,30]
[325358093,1714750246980,-2196.46,0.00041095,30]
[325358094,1714750246990,-508.33,0.00041095,30]
[325358095,1714750247000,-437.63468295,0.00041095,30]
[325358096,1714750247010,-500.0,0.00041095,30]
[325358097,1714750247021,-500.0,0.00041095,30]
[325358098,1714750247030,-703.43,0.00041095,30]
[325358099,1714750247040,-518.5888693,0.00041095,30]
[325358100,1714750247050,-495.51498266,0.00041095,2]
[325358101,1714750247059,-500.0,0.00041095,30]
[325358102,1714750247069,-500.0,0.00041095,30]
[325358103,1714750247078,-500.0,0.00041095,30]
[325358105,1714750247089,-2369.42,0.00041095,30]
[325358107,1714750247099,-500.0,0.00041095,30]
[325358109,1714750247109,-501.25929987,0.00041095,30]
[325358111,1714750247118,-500.0,0.00041095,30]
[325358113,1714750247127,-156.36648287,0.00041095,30]
[325358115,1714750247137,-500.0,0.00041095,2]
[325358117,1714750247146,-500.0,0.00041095,30]
[325358119,1714750247156,-1486.76,0.00041095,30]
[325358121,1714750247165,-500.0,0.00041095,30]
[325358123,1714750247175,-500.0,0.00041095,30]
[325358126,1714750247185,-500.0,0.00041095,30]
[325358128,1714750247194,-500.0,0.00041095,30]
[325358130,1714750247204,-500.0,0.00041095,30]
[325358132,1714750247213,-4097.88,0.00041095,30]
[325358134,1714750247223,-500.0,0.00041095,2]
[325358136,1714750247234,-500.0,0.00041095,30]
[325358138,1714750247244,-500.0,0.00041095,30]
[325358140,1714750247253,-573.9,0.00041095,30]
[325358142,1714750247262,-500.0,0.00041095,30]
[325358144,1714750247272,-1066.7,0.00041095,30]
[325358146,1714750247284,-500.0,0.00041095,30]
[325358148,1714750247296,-500.0,0.00041095,30]
[325358150,1714750247305,-500.0,0.00041095,30]
[325358152,1714750247315,-500.0,0.00041095,30]
[325358154,1714750247324,-500.0,0.00041095,30]
[325358156,1714750247334,-500.0,0.00041095,30]
[325358158,1714750247343,-500.0,0.00041095,30]
[325358160,1714750247352,-500.0,0.00041095,30]
[325358162,1714750247361,-500.0,0.00041095,30]
[325358164,1714750247372,-500.0,0.00041095,30]
[325358166,1714750247383,-1326.12,0.00041095,30]
[325358168,1714750247392,-914.04,0.00041095,30]
[325358170,1714750247401,-514.23928691,0.00041095,30]
[325358172,1714750247411,-500.0,0.00041095,30]
[325358174,1714750247420,-1711.57,0.00041095,30]
[325358176,1714750247429,-500.0,0.00041095,30]
[325358178,1714750247442,-500.0,0.00041095,30]
[325358180,1714750247453,-2468.83,0.00041095,2]
[325358182,1714750247463,-500.0,0.00041095,30]
[325358184,1714750247472,-500.0,0.00041095,30]
[325358186,1714750247483,-500.0,0.00041095,30]
[325358188,1714750247492,-500.0,0.00041095,30]
[325358190,1714750247502,-500.0,0.00041095,30]
[325358192,1714750247511,-500.0,0.00041095,30]
[325358194,1714750247522,-500.0,0.00041095,30]
[325358196,1714750247531,-500.0,0.00041095,30]
[325358198,1714750247541,-503.34155051,0.00041095,30]
[325358200,1714750247550,-500.0,0.00041095,30]
[325358202,1714750247560,-688.39,0.00041095,30]
[325358204,1714750247570,-599.64,0.00041095,30]
[325358206,1714750247579,-500.0,0.00041095,30]
[325358208,1714750247588,-500.0,0.00041095,30]
[325358210,1714750247598,-500.0,0.00041095,30]
[325358213,1714750247608,-2405.87,0.00041095,30]
[325358215,1714750247617,-547.4,0.00041095,30]
[325358217,1714750247627,-500.0,0.00041095,30]
[325358219,1714750247636,-500.0,0.00041095,30]
[325358221,1714750247646,-500.0,0.00041095,30]
[325358223,1714750247656,-500.0,0.00041095,30]
[325358225,1714750247666,-500.0,0.00041095,30]
[325358227,1714750247675,-500.0,0.00041095,30]
[325358229,1714750247685,-500.0,0.00041095,30]
[325358231,1714750247695,-1803.84,0.00041095,30]
[325358233,1714750247704,-500.0,0.00041095,30]
[325358235,1714750247714,-1121.0,0.00041095,30]
[325358237,1714750247724,-533.99334401,0.00041095,30]
[325358239,1714750247736,-2354.99,0.00041095,30]
[325358241,1714750247745,-500.0,0.00041095,30]
[325358243,1714750247755,-500.0,0.00041095,30]
[325358245,1714750247765,-1554.25,0.00041095,30]
[325358247,1714750247775,-500.0,0.00041095,30]
[325358249,1714750247785,-2192.88,0.00041095,30]
[325358251,1714750247794,-500.0,0.00041095,30]
[325358253,1714750247804,-500.0,0.00041095,30]
[325358256,1714750247814,-500.0,0.00041095,30]
[325358258,1714750247824,-504.26153048,0.00041095,30]
[325358260,1714750247833,-500.0,0.00041095,30]
[325358262,1714750247843,-500.0,0.00041095,30]
[325358264,1714750247853,-500.0,0.00041095,30]
[325358266,1714750247862,-500.0,0.00041095,30]
[325358268,1714750247872,-500.0,0.00041095,30]
[325358270,1714750247882,-1061.7,0.00041095,30]
[325358272,1714750247892,-500.0,0.00041095,30]
[325358274,1714750247902,-1000.0,0.00041095,30]
[325358276,1714750247912,-500.0,0.00041095,30]
[325358278,1714750247923,-1549.7,0.00041095,30]
[325358280,1714750247933,-565.7,0.00041095,30]
[325358282,1714750247943,-500.0,0.00041095,30]
[325358284,1714750247952,-500.0,0.00041095,30]
[325358286,1714750247962,-1005.12,0.00041095,30]
[325358288,1714750247972,-2091.98,0.00041095,30]
[325358290,1714750247983,-500.0,0.00041095,30]
[325358292,1714750247993,-500.0,0.00041095,30]
[325358294,1714750248002,-500.0,0.00041095,30]
[325358296,1714750248012,-2040.23,0.00041095,30]
[325358298,1714750248022,-500.0,0.00041095,30]
[325358300,1714750248032,-987.12,0.00041095,30]
[325358302,1714750248042,-500.0,0.00041095,30]
[325358304,1714750248051,-2845.92,0.00041095,30]
[325358306,1714750248061,-500.0,0.00041095,30]
[325358308,1714750248071,-500.0,0.00041095,30]
[325358310,1714750248080,-781.78,0.00041095,30]
[325358312,1714750248090,-500.0,0.00041095,30]
[325358314,1714750248099,-1481.82,0.00041095,30]
[325358316,1714750248109,-500.0,0.00041095,30]
[325358319,1714750248119,-505.20745317,0.00041095,30]
[325358321,1714750248129,-518.9,0.00041095,30]
[325358323,1714750248138,-1179.17,0.00041095,30]
[325358325,1714750248147,-1404.61,0.00041095,30]
[325358327,1714750248158,-500.0,0.00041095,30]
[325358329,1714750248167,-500.0,0.00041095,30]
[325358331,1714750248177,-603.35,0.00041095,30]
[325358333,1714750248186,-688.09,0.00041095,30]
[325358335,1714750248195,-500.0,0.00041095,30]
[325358337,1714750248205,-1529.61,0.00041095,30]
[325358339,1714750248214,-500.0,0.00041095,30]
[325358341,1714750248223,-1638.99,0.00041095,30]
[325358343,1714750248233,-500.0,0.00041095,30]
[325358345,1714750248244,-500.0,0.00041095,30]
[325358347,1714750248255,-750.0,0.00041095,30]
[325358349,1714750248264,-1348.71,0.00041095,30]
[325358351,1714750248274,-500.0,0.00041095,30]
[325358353,1714750248285,-500.0,0.00041095,30]
[325358355,1714750248297,-500.0,0.00041095,30]
[325358357,1714750248307,-524.8706534,0.00041095,30]
[325358359,1714750248316,-500.0,0.00041095,30]
[325358361,1714750248326,-377.43906349,0.00041095,30]
[325358363,1714750248338,-500.0,0.00041095,30]
[325358366,1714750248357,-1054.46,0.00041095,30]
[325358368,1714750248372,-506.97045791,0.00041095,30]
[325358370,1714750248382,-500.0,0.00041095,30]
[325358372,1714750248392,-1179.41,0.00041095,30]
[325358374,1714750248401,-500.0,0.00041095,30]
[325358376,1714750248412,-1218.1,0.00041095,30]
[325358378,1714750248422,-560.97,0.00041095,30]
[325358380,1714750248431,-500.0,0.00041095,30]
[325358382,1714750248441,-500.0,0.00041095,30]
[325358384,1714750248451,-1475.19,0.00041095,30]
[325358386,1714750248460,-500.29472718,0.00041095,30]
[325358388,1714750248470,-2265.39,0.00041095,30]
[325358390,1714750248479,-500.0,0.00041095,30]
[325358392,1714750248489,-550.94,0.00041095,30]
[325358394,1714750248498,-1980.82,0.00041095,30]
[325358396,1714750248508,-500.0,0.00041095,30]
[325358398,1714750248518,-501.48822275,0.00041095,30]
[325358401,1714750248527,-770.0,0.00041095,30]
[325358403,1714750248538,-1138.06,0.00041095,30]
[325358405,1714750248547,-1213.3,0.00041095,30]
[325358407,1714750248558,-500.0,0.00041095,30]
[325358409,1714750248567,-500.0,0.00041095,30]
[325358411,1714750248577,-500.0,0.00041095,30]
[325358413,1714750248586,-500.0,0.00041095,30]
[325358415,1714750248596,-500.0,0.00041095,30]
[325358417,1714750248605,-602.22,0.00041095,30]
[325358419,1714750248615,-500.0,0.00041095,30]
[325358421,1714750248624,-730.69,0.00041095,30]
[325358423,1714750248634,-577.33,0.00041095,30]
[325358425,1714750248644,-500.0,0.00041095,30]
[325358427,1714750248653,-735.66,0.00041095,30]
[325358429,1714750248663,-500.0,0.00041095,30]
[325358431,1714750248672,-500.0,0.00041095,30]
[325358433,1714750248682,-3823.17,0.00041095,30]
[325358435,1714750248692,-562.93085989,0.00041095,30]
[325358437,1714750248701,-754.87,0.00041095,30]
[325358439,1714750248710,-1186.87,0.00041095,30]
[325358441,1714750248720,-500.0,0.00041095,30]
[325358443,1714750248731,-500.0,0.00041095,30]
[325358446,1714750248741,-1780.98,0.00041095,30]
[325358448,1714750248750,-1471.9,0.00041095,30]
[325358450,1714750248760,-500.0,0.00041095,30]
[325358452,1714750248769,-524.00361557,0.00041095,30]
[325358454,1714750248779,-500.0,0.00041095,30]
[325358455,1714750248788,-500.0,0.00041095,30]
[325358458,1714750248798,-848.67,0.00041095,30]
[325358460,1714750248807,-500.0,0.00041095,30]
[325358462,1714750248817,-538.3518557,0.00041095,4]
[325358464,1714750248826,-1782.97,0.00041095,30]
[325358466,1714750248836,-1236.03,0.00041095,30]
[325358468,1714750248846,-500.0,0.00041095,30]
[325358470,1714750248855,-500.0,0.00041095,30]
[325358472,1714750248865,-1268.57,0.00041095,30]
[325358474,1714750248874,-500.0,0.00041095,30]
[325358476,1714750248884,-500.0,0.00041095,30]
[325358478,1714750248894,-500.0,0.00041095,30]
[325358480,1714750248904,-500.0,0.00041095,30]
[325358482,1714750248913,-500.0,0.00041095,30]
[325358484,1714750248923,-507.32,0.00041095,30]
[325358486,1714750248932,-712.0,0.00041095,30]
[325358488,1714750248942,-500.0,0.00041095,30]
[325358490,1714750248952,-500.0,0.00041095,30]
[325358492,1714750248962,-500.0,0.00041095,30]
[325358494,1714750248972,-1208.77,0.00041095,30]
[325358496,1714750248982,-1490.55,0.00041095,30]
[325358498,1714750248992,-500.0,0.00041095,30]
[325358500,1714750249001,-500.0,0.00041095,30]
[325358502,1714750249011,-555.92,0.00041095,30]
[325358504,1714750249021,-500.0,0.00041095,30]
[325358506,1714750249030,-500.0,0.00041095,30]
[325358508,1714750249040,-500.0,0.00041095,30]
[325358510,1714750249050,-500.0,0.00041095,30]
[325358512,1714750249059,-500.0,0.00041095,30]
[325358514,1714750249068,-500.0,0.00041095,30]
[325358516,1714750249078,-2767.75,0.00041095,30]
[325358518,1714750249088,-500.0,0.00041095,30]
[325358520,1714750249098,-500.0,0.00041095,30]
[325358522,1714750249107,-1766.6,0.00041095,30]
[325358524,1714750249117,-500.0,0.00041095,30]
[325358526,1714750249127,-500.0,0.00041095,30]
[325358528,1714750249136,-500.0,0.00041095,30]
[325358530,1714750249146,-1778.27,0.00041095,30]
[325358532,1714750249156,-500.0,0.00041095,30]
[325358534,1714750249165,-1142.36,0.00041095,30]
[325358536,1714750249175,-902.74,0.00041095,30]
[325358538,1714750249185,-500.0,0.00041095,30]
[325358540,1714750249195,-906.63,0.00041095,30]
[325358542,1714750249204,-500.0,0.00041095,30]
[325358544,1714750249214,-500.0,0.00041095,30]
[325358547,1714750249224,-500.0,0.00041095,30]
[325358549,1714750249235,-500.0,0.00041095,30]
[325358551,1714750249246,-500.0,0.00041095,30]
[325358553,1714750249256,-500.0,0.00041095,30]
[325358555,1714750249266,-2017.2,0.00041095,30]
[325358557,1714750249276,-500.0,0.00041095,30]
[325358559,1714750249286,-1407.35,0.00041095,30]
[325358561,1714750249301,-1428.15,0.00041095,30]
[325358563,1714750249311,-500.88456016,0.00041095,30]
[325358565,1714750249320,-500.0,0.00041095,30]
[325358567,1714750249330,-497.97295661,0.00041095,30]
[325358569,1714750249340,-720.17,0.00041095,30]
[325358571,1714750249349,-500.0,0.00041095,30]
[325358573,1714750249359,-500.0,0.00041095,30]
[325358575,1714750249369,-498.6391163,0.00041095,30]
[325358577,1714750249379,-500.0,0.00041095,30]
[325358579,1714750249388,-984.04,0.00041095,30]
[325358581,1714750249398,-971.89,0.00041095,30]
[325358583,1714750249408,-500.0,0.00041095,30]
[325358585,1714750249418,-500.0,0.00041095,30]
[325358587,1714750249429,-504.36001104,0.00041095,30]
[325358589,1714750249439,-168.63186526,0.00041095,30]
[325358591,1714750249448,-1380.83,0.00041095,30]
[325358593,1714750249458,-500.0,0.00041095,30]
[325358595,1714750249468,-500.0,0.00041095,30]
[325358597,1714750249479,-502.10894736,0.00041095,30]
[325358599,1714750249489,-2004.80122489,0.00041095,30]
[325358601,1714750249499,-718.7,0.00041095,30]
[325358603,1714750249510,-500.0,0.00041095,30]
[325358605,1714750249519,-500.0,0.00041095,30]
[325358607,1714750249529,-1554.01,0.00041095,30]
[325358608,1714750249540,-500.0,0.00041095,30]
[325358609,1714750249549,-500.0,0.00041095,30]
[325358610,1714750249558,-540.18,0.00041095,30]
[325358611,1714750249568,-1131.81,0.00041095,30]
[325358612,1714750249579,-500.0,0.00041095,30]
[325358613,1714750249589,-500.70098242,0.00041095,30]
[325358614,1714750249599,-704.54,0.00041095,30]
[325358615,1714750249609,-1262.74,0.00041095,30]
[325358616,1714750249619,-500.0,0.00041095,30]
[325358617,1714750249629,-500.0,0.00041095,30]
[325358619,1714750249639,-500.0,0.00041095,30]
[325358621,1714750249650,-500.0,0.00041095,30]
[325358623,1714750249661,-529.47,0.00041095,30]
[325358625,1714750249671,-500.0,0.00041095,30]
[325358627,1714750249681,-638.04,0.00041095,30]
[325358629,1714750249691,-547.32639085,0.00041095,30]
[325358631,1714750249702,-500.0,0.00041095,30]
[325358633,1714750249712,-1330.2,0.00041095,30]
[325358635,1714750249722,-3114.14,0.00041095,30]
[325358637,1714750249733,-639.81,0.00041095,30]
[325358639,1714750249743,-485.53152602,0.00041095,30]
[325358641,1714750249753,-500.0,0.00041095,30]
[325358643,1714750249762,-500.0,0.00041095,30]
[325358645,1714750249773,-3324.33,0.00041095,30]
[325358647,1714750249783,-805.28,0.00041095,30]
[325358649,1714750249792,-500.0,0.00041095,30]